[Event "3rd HoliCup Lake City 2019"]
[Site "Udaipur"]
[Date "2019.03.31"]
[Round "8.16"]
[White "Sudhanshu, Ranjan"]
[Black "Sanchit, Anand"]
[Result "1/2-1/2"]
[ECO "D37"]
[WhiteElo "2056"]
[BlackElo "1817"]
[Annotator "NA"]
[PlyCount "126"]
[EventDate "2019.??.??"]
[EventCountry "IND"]
[SourceTitle "playchess.com"]
[Source "ChessBase"]
[SourceQuality "1"]
[TimeControl "5400+30"]

1. d4 {[%emt 0:00:00]} Nf6 {[%emt 0:00:00]} 2. c4 {[%emt 0:00:00]} e6 {[%emt 0:00:00]} 3. Nf3 {[%emt 0:00:00]} d5 {[%emt 0:00:22]} 4. Nc3 {[%emt 0:00:17]} Be7 {[%emt 0:00:19]} 5. Bg5 {[%emt 0:00:07]} Nbd7 {[%emt 0:01:40]} 6. e3 {[%emt 0:00:09]} Ne4 {[%emt 0:00:52]} 7. Bxe7 {[%emt 0:01:26]} Qxe7 {[%emt 0:00:42]} 8. cxd5 {[%emt 0:04:20]} Nxc3 {[%emt 0:00:20]} 9. bxc3 {[%emt 0:00:05]} exd5 {[%emt 0:00:11]} 10. Bd3 {[%emt 0:00:35]} O-O {[%emt 0:00:22]} 11. O-O {[%emt 0:00:06]} c6 {[%emt 0:07:41]} 12. Qc2 {[%emt 0:01:04]} Nf6 {[%emt 0:00:29]} 13. c4 {[%emt 0:00:28]} dxc4 $14 {[%emt 0:01:11]} 14. Bxc4 {[%emt 0:00:12]} Be6 {[%emt 0:00:49]} 15. Rab1 {[%emt 0:03:30]} b6 {[%emt 0:03:21]} 16. Rbc1 {[%emt 0:02:15]} Bxc4 {[%emt 0:05:38]} 17. Qxc4 {[%emt 0:00:03]} c5 {[%emt 0:02:52]} 18. dxc5 {[%emt 0:00:32]} bxc5 {[%emt 0:00:15]} 19. Qxc5 {[%emt 0:00:16]} Qe6 {[%emt 0:03:18]} 20. Qa5 {[%emt 0:07:36]} Qb6 {[%emt 0:00:55]} 21. Qa4 {[%emt 0:02:46]} Rfc8 {[%emt 0:01:06]} 22. Rb1 {[%emt 0:01:17]} Qc7 {[%emt 0:01:12]} 23. h3 {[%emt 0:01:28]} Rab8 {[%emt 0:00:07]} 24. Rb3 {[%emt 0:01:40]} Rxb3 {[%emt 0:00:34]} 25. axb3 {[%emt 0:00:36]} h6 {[%emt 0:00:14]} 26. Nd4 {[%emt 0:04:31]} Rb8 {[%emt 0:05:30]} 27. Ra1 {[%emt 0:02:52]} Rb7 {[%emt 0:00:12]} 28. Qa3 {[%emt 0:00:50]} Ne4 {[%emt 0:04:24]} 29. Rc1 {[%emt 0:00:22]} Qb8 {[%emt 0:01:13]} 30. Qa5 {[%emt 0:01:26]} Nd6 {[%emt 0:02:33]} 31. Rc5 {[%emt 0:01:48]} Rb6 {[%emt 0:01:27]} 32. Qc3 {[%emt 0:01:43]} Kh7 {[%emt 0:08:30]} 33. Rc7 {[%emt 0:03:43]} Rb7 {[%emt 0:03:49]} 34. Rc6 {[%emt 0:03:09]} Rb6 {[%emt 0:00:29]} 35. Rc5 {[%emt 0:00:06]} g6 {[%emt 0:04:40]} 36. Qc2 {[%emt 0:08:00]} Nb5 {[%emt 0:02:24]} 37. Qc4 {[%emt 0:02:38]} Nd6 {[%emt 0:01:21]} 38. Qd5 {[%emt 0:00:11]} Qb7 {[%emt 0:00:42]} 39. Qe5 {[%emt 0:02:10]} a6 {[%emt 0:00:55]} 40. f3 {[%emt 0:08:34]} Nb5 {[%emt 0:01:36]} 41. Nxb5 {[%emt 0:01:26]} Rxb5 {[%emt 0:00:54]} 42. Rc7 {[%emt 0:00:58]} Rxe5 {[%emt 0:00:43]} 43. Rxb7 {[%emt 0:00:02]} Kg7 {[%emt 0:00:49]} 44. Kf2 {[%emt 0:00:16]} Ra5 {[%emt 0:00:24]} 45. e4 {[%emt 0:00:32]} Ra2+ {[%emt 0:00:09]} 46. Kg3 {[%emt 0:00:17]} a5 {[%emt 0:02:25]} 47. e5 {[%emt 0:01:33]} Kg8 {[%emt 0:00:56]} 48. f4 {[%emt 0:00:13]} a4 {[%emt 0:01:24]} 49. bxa4 {[%emt 0:00:03]} Rxa4 {[%emt 0:00:11]} 50. Kg4 {[%emt 0:00:17]} Ra2 {[%emt 0:08:28]} 51. g3 {[%emt 0:00:52]} Ra3 {[%emt 0:00:05]} 52. Re7 {[%emt 0:04:07]} Kf8 {[%emt 0:00:21]} 53. Rc7 {[%emt 0:00:07]} Kg8 {[%emt 0:00:04]} 54. Rc6 {[%emt 0:00:15]} Re3 {[%emt 0:01:47]} 55. h4 {[%emt 0:00:26]} Kg7 {[%emt 0:00:34]} 56. h5 {[%emt 0:01:42]} gxh5+ {[%emt 0:01:48]} 57. Kh3 {[%emt 0:00:30]} Re2 {[%emt 0:02:21]} 58. Rf6 {[%emt 0:00:19]} Rb2 {[%emt 0:00:58]} 59. Rc6 {[%emt 0:00:32]} Ra2 {[%emt 0:00:16]} 60. e6 {[%emt 0:01:24]} fxe6 {[%emt 0:00:18]} 61. Rxe6 {[%emt 0:00:03]} Rb2 {[%emt 0:01:21]} 62. Re5 {[%emt 0:02:29]} Kg6 {[%emt 0:00:14]} 63. Rc5 {[%emt 0:00:26]} Rf2 {[%emt 0:00:52]} 1/2-1/2

[Event "3rd HoliCup Lake City 2019"]
[Site "Udaipur"]
[Date "2019.03.31"]
[Round "8.17"]
[White "Chandan, Palash N"]
[Black "Pandey, Srishti"]
[Result "1-0"]
[ECO "B01"]
[WhiteElo "1689"]
[BlackElo "2020"]
[Annotator "NA"]
[PlyCount "55"]
[EventDate "2019.??.??"]
[EventCountry "IND"]
[SourceTitle "playchess.com"]
[Source "ChessBase"]
[SourceQuality "1"]
[TimeControl "5400+30"]

1. e4 {[%emt 0:07:52]} d5 {[%emt 0:00:13]} 2. exd5 {[%emt 0:00:12]} Qxd5 {[%emt 0:00:11]} 3. Nc3 {[%emt 0:00:12]} Qd6 {[%emt 0:00:04]} 4. d4 {[%emt 0:00:14]} a6 {[%emt 0:00:14]} 5. Bd3 {[%emt 0:02:59]} Nf6 {[%emt 0:11:28]} 6. Nge2 {[%emt 0:00:11]} Bg4 {[%emt 0:01:06]} 7. f3 {[%emt 0:00:05]} Bh5 {[%emt 0:00:56]} 8. Bf4 {[%emt 0:00:58]} Qd7 {[%emt 0:00:12]} 9. Qd2 {[%emt 0:01:07]} Nc6 {[%emt 0:00:45]} 10. O-O-O {[%emt 0:10:16]} O-O-O {[%emt 0:01:04]} 11. g4 {[%emt 0:16:33]} Bg6 {[%emt 0:01:03]} 12. Bxg6 {[%emt 0:01:40]} hxg6 {[%emt 0:00:08]} 13. d5 {[%emt 0:03:19]} Nb4 {[%emt 0:07:03]} 14. Qd4 {[%emt 0:01:01]} Nbxd5 {[%emt 0:00:19] [#]} 15. g5 $16 {[%emt 0:09:38]} e5 {[%emt 0:12:01]} 16. Qa7 {[%emt 0:12:52]} Nb6 {[%emt 0:15:32]} 17. Rxd7 {[%emt 0:01:33]} Nfxd7 {[%emt 0:00:11]} 18. Be3 {[%emt 0:08:39]} c5 {[%emt 0:16:14]} 19. Rd1 {[%emt 0:04:24]} Kc7 {[%emt 0:02:24]} 20. Nd5+ {[%emt 0:00:06]} Nxd5 {[%emt 0:00:18]} 21. Rxd5 {[%emt 0:00:02]} Kc6 {[%emt 0:05:05]} 22. Nc3 {[%emt 0:01:02]} Be7 {[%emt 0:00:27]} 23. Rxd7 {[%emt 0:00:13]} Rxd7 {[%emt 0:02:08]} 24. Na4 {[%emt 0:00:13]} Kc7 {[%emt 0:06:06]} 25. Nxc5 {[%emt 0:01:51]} Bxc5 {[%emt 0:02:26]} 26. Qxc5+ {[%emt 0:00:02]} Kb8 {[%emt 0:01:57]} 27. Qxe5+ {[%emt 0:00:05]} Ka8 {[%emt 0:00:30]} 28. b3 {[%emt 0:00:18]} 1-0

[Event "3rd HoliCup Lake City 2019"]
[Site "Udaipur"]
[Date "2019.03.31"]
[Round "8.18"]
[White "Dhruv Dak"]
[Black "Himanshu, Ranjan"]
[Result "1-0"]
[ECO "A07"]
[WhiteElo "1684"]
[BlackElo "1984"]
[Annotator "NA"]
[PlyCount "63"]
[EventDate "2019.??.??"]
[EventCountry "IND"]
[SourceTitle "playchess.com"]
[Source "ChessBase"]
[SourceQuality "1"]
[TimeControl "5400+30"]

1. Nf3 {[%emt 0:00:32]} d5 {[%emt 0:00:00]} 2. g3 {[%emt 0:00:10]} Nf6 {[%emt 0:00:08]} 3. Bg2 {[%emt 0:00:01]} c6 {[%emt 0:00:42]} 4. O-O {[%emt 0:00:05]} Bg4 {[%emt 0:00:09]} 5. Ne5 {[%emt 0:03:11]} Bh5 {[%emt 0:00:19]} 6. d4 {[%emt 0:05:35]} e6 {[%emt 0:01:05]} 7. c4 {[%emt 0:00:25]} Nbd7 {[%emt 0:02:49]} 8. f4 $11 {[%emt 0:06:14]} Be7 {[%emt 0:04:27]} 9. cxd5 {[%emt 0:04:30]} cxd5 {[%emt 0:00:51]} 10. Nc3 {[%emt 0:03:03]} O-O {[%emt 0:02:32]} 11. Qb3 {[%emt 0:01:21]} Rb8 {[%emt 0:06:21]} 12. h3 {[%emt 0:04:54]} Nxe5 {[%emt 0:10:31]} 13. dxe5 {[%emt 0:06:26]} Nd7 {[%emt 0:04:58]} 14. g4 {[%emt 0:03:32]} Bg6 {[%emt 0:00:04]} 15. f5 {[%emt 0:01:17]} exf5 {[%emt 0:11:57]} 16. gxf5 {[%emt 0:01:16]} Bh5 {[%emt 0:00:27]} 17. Bf4 {[%emt 0:19:32]} d4 {[%emt 0:08:17]} 18. Nd5 {[%emt 0:16:54]} Bxe2 {[%emt 0:14:34]} 19. f6 {[%emt 0:02:23]} Bc5 {[%emt 0:02:38]} 20. Qg3 {[%emt 0:01:59]} g6 {[%emt 0:00:20]} 21. b4 {[%emt 0:01:22]} Nb6 {[%emt 0:10:01]} 22. Qg5 {[%emt 0:07:52]} Kh8 {[%emt 0:01:20]} 23. Ne7 {[%emt 0:04:51]} Bxb4 {[%emt 0:01:09]} 24. e6 {[%emt 0:01:55]} Bc4 {[%emt 0:00:41]} 25. Nxg6+ {[%emt 0:01:44]} fxg6 {[%emt 0:00:04]} 26. Be5 {[%emt 0:00:41]} Rf7 {[%emt 0:00:30]} 27. exf7 {[%emt 0:00:32]} Bxf7 {[%emt 0:00:01]} 28. Bxb8 {[%emt 0:00:45]} Qxb8 {[%emt 0:00:02]} 29. Rad1 {[%emt 0:00:40]} Qd8 {[%emt 0:00:18]} 30. Rf4 {[%emt 0:00:31]} Bc3 {[%emt 0:00:17]} 31. Qh6 {[%emt 0:00:28]} Qg8 {[%emt 0:00:02]} 32. Rfxd4 {[%emt 0:00:25]} 1-0

[Event "3rd HoliCup Lake City 2019"]
[Site "Udaipur"]
[Date "2019.03.31"]
[Round "8.19"]
[White "Shubham, Shukla"]
[Black "Bahadur, Singh"]
[Result "1-0"]
[ECO "B07"]
[WhiteElo "1948"]
[BlackElo "1630"]
[Annotator "NA"]
[PlyCount "103"]
[EventDate "2019.??.??"]
[EventCountry "IND"]
[SourceTitle "playchess.com"]
[Source "ChessBase"]
[SourceQuality "1"]
[TimeControl "5400+30"]

1. e4 {[%emt 0:00:00]} d6 {[%emt 0:00:00]} 2. d4 {[%emt 0:00:00]} Nf6 {[%emt 0:00:00]} 3. Nc3 {[%emt 0:00:00]} c6 {[%emt 0:00:04]} 4. Bg5 {[%emt 0:00:00]} e6 {[%emt 0:04:03]} 5. Nf3 {[%emt 0:01:41]} Be7 {[%emt 0:01:00]} 6. Bd3 {[%emt 0:00:41]} d5 {[%emt 0:09:01]} 7. Qe2 {[%emt 0:00:38]} dxe4 {[%emt 0:00:45]} 8. Nxe4 {[%emt 0:00:30]} Nxe4 {[%emt 0:01:11]} 9. Bxe7 $16 {[%emt 0:00:07]} Qxe7 {[%emt 0:01:41]} 10. Bxe4 {[%emt 0:00:07]} Nd7 {[%emt 0:00:46]} 11. O-O-O {[%emt 0:00:29]} O-O {[%emt 0:02:42]} 12. Rhe1 {[%emt 0:00:25]} Qf6 {[%emt 0:00:12]} 13. g3 {[%emt 0:00:21]} a5 {[%emt 0:01:49]} 14. h4 {[%emt 0:00:20]} h6 {[%emt 0:01:37]} 15. Ne5 {[%emt 0:00:17]} Qe7 {[%emt 0:01:35]} 16. f4 {[%emt 0:00:59]} Nxe5 {[%emt 0:05:45]} 17. dxe5 {[%emt 0:01:42]} a4 {[%emt 0:00:54]} 18. Rd6 {[%emt 0:00:13]} a3 {[%emt 0:11:48]} 19. b4 {[%emt 0:02:36]} f5 {[%emt 0:00:21]} 20. Bf3 {[%emt 0:00:38]} g6 {[%emt 0:09:29]} 21. Red1 {[%emt 0:00:06]} h5 {[%emt 0:01:45]} 22. R1d3 {[%emt 0:00:43]} Qc7 {[%emt 0:04:36]} 23. Qe3 {[%emt 0:00:22]} Kg7 {[%emt 0:09:43]} 24. Rxa3 {[%emt 0:00:52]} Rxa3 {[%emt 0:00:23]} 25. Qxa3 {[%emt 0:00:14]} Qb6 {[%emt 0:00:27]} 26. Be2 {[%emt 0:00:13]} Rd8 {[%emt 0:02:13]} 27. Qc3 {[%emt 0:01:52]} Kf7 {[%emt 0:06:10]} 28. Qc5 {[%emt 0:01:29]} Qxc5 {[%emt 0:00:36]} 29. bxc5 {[%emt 0:00:02]} Ke7 {[%emt 0:00:45]} 30. Kb2 {[%emt 0:00:09]} Bd7 {[%emt 0:00:31]} 31. a4 {[%emt 0:00:11]} Ra8 {[%emt 0:02:15]} 32. Kb3 {[%emt 0:00:05]} Rb8 {[%emt 0:01:05]} 33. Kb4 {[%emt 0:00:18]} Ra8 {[%emt 0:00:43]} 34. Bc4 {[%emt 0:01:41]} Ra7 {[%emt 0:00:19]} 35. Rd1 {[%emt 0:00:06]} Bc8 {[%emt 0:01:10]} 36. a5 {[%emt 0:00:23]} Ra8 {[%emt 0:01:19]} 37. Rd3 {[%emt 0:00:05]} Rb8 {[%emt 0:04:23]} 38. Ka4 {[%emt 0:03:02]} Ra8 {[%emt 0:01:00]} 39. Rd6 {[%emt 0:00:09]} Rb8 {[%emt 0:01:00]} 40. a6 {[%emt 0:00:34]} bxa6 {[%emt 0:00:09]} 41. Ka5 {[%emt 0:00:03]} Bd7 {[%emt 0:00:09]} 42. Kxa6 {[%emt 0:00:19]} Rb4 {[%emt 0:02:05]} 43. Bb3 {[%emt 0:00:42]} Rb5 {[%emt 0:03:36]} 44. Ba4 {[%emt 0:01:45]} Rxc5 {[%emt 0:00:27]} 45. Kb6 {[%emt 0:00:02]} Rd5 {[%emt 0:08:51]} 46. Kc7 {[%emt 0:00:55]} Rxd6 {[%emt 0:00:38]} 47. exd6+ {[%emt 0:00:06]} Ke8 {[%emt 0:00:13]} 48. c4 {[%emt 0:00:08]} g5 {[%emt 0:01:08]} 49. hxg5 {[%emt 0:00:23]} e5 {[%emt 0:00:17]} 50. Bd1 {[%emt 0:00:05]} exf4 {[%emt 0:00:16]} 51. Bxh5+ {[%emt 0:00:03]} Kf8 {[%emt 0:00:01]} 52. Kxd7 {[%emt 0:00:16]} 1-0

[Event "3rd HoliCup Lake City 2019"]
[Site "Udaipur"]
[Date "2019.03.31"]
[Round "8.20"]
[White "Devesh, Mukherjee"]
[Black "Vikramaditya, Mukhija"]
[Result "1/2-1/2"]
[ECO "A16"]
[WhiteElo "1884"]
[BlackElo "1627"]
[Annotator "NA"]
[PlyCount "141"]
[EventDate "2019.??.??"]
[EventCountry "IND"]
[SourceTitle "playchess.com"]
[Source "ChessBase"]
[SourceQuality "1"]
[TimeControl "5400+30"]

1. c4 {[%emt 0:05:21]} Nf6 {[%emt 0:00:00]} 2. Nc3 {[%emt 0:00:11]} g6 {[%emt 0:00:00]} 3. g3 {[%emt 0:04:24]} Bg7 {[%emt 0:00:00]} 4. Bg2 {[%emt 0:00:01]} d6 {[%emt 0:00:04]} 5. e3 {[%emt 0:01:06]} O-O {[%emt 0:01:46]} 6. Nge2 {[%emt 0:00:06]} Nc6 {[%emt 0:01:05]} 7. O-O {[%emt 0:00:35] Rb} Rb8 $14 {[%emt 0:01:53]} 8. d3 {[%emt 0:05:52]} Bg4 {[%emt 0:01:45]} 9. h3 {[%emt 0:02:20]} Bd7 {[%emt 0:00:23]} 10. e4 {[%emt 0:02:35]} e5 {[%emt 0:11:03]} 11. Be3 {[%emt 0:04:59]} Ne8 {[%emt 0:02:19]} 12. Qd2 {[%emt 0:01:43]} Nd4 {[%emt 0:06:54]} 13. f4 {[%emt 0:01:21]} f5 {[%emt 0:06:17]} 14. Bf2 {[%emt 0:12:14]} c5 {[%emt 0:11:13]} 15. Nd5 {[%emt 0:01:22]} Nc7 {[%emt 0:02:54]} 16. Nxd4 {[%emt 0:02:17]} cxd4 {[%emt 0:03:29]} 17. exf5 {[%emt 0:01:15]} Bxf5 {[%emt 0:00:57]} 18. g4 {[%emt 0:08:24]} Bd7 {[%emt 0:02:12]} 19. Bg3 {[%emt 0:00:35]} exf4 {[%emt 0:04:11]} 20. Bxf4 {[%emt 0:05:26]} Bc6 {[%emt 0:00:22]} 21. Rae1 {[%emt 0:07:28]} Bxd5 {[%emt 0:03:10]} 22. cxd5 {[%emt 0:00:20]} Qd7 {[%emt 0:01:49]} 23. Qb4 {[%emt 0:01:39]} Rf6 {[%emt 0:11:02]} 24. g5 {[%emt 0:03:14]} Rxf4 {[%emt 0:00:19]} 25. Rxf4 {[%emt 0:00:17]} Be5 {[%emt 0:00:09]} 26. Rf3 {[%emt 0:01:06]} Na6 {[%emt 0:01:25]} 27. Qd2 {[%emt 0:00:44]} Rf8 {[%emt 0:03:38]} 28. Rxf8+ {[%emt 0:01:16]} Kxf8 {[%emt 0:00:06]} 29. Qf2+ {[%emt 0:00:52]} Qf7 {[%emt 0:03:26]} 30. Qxf7+ {[%emt 0:01:08]} Kxf7 {[%emt 0:00:05]} 31. Be4 {[%emt 0:00:09]} Kg7 {[%emt 0:01:31]} 32. Kg2 {[%emt 0:00:49]} Nc5 {[%emt 0:01:25]} 33. Kf3 {[%emt 0:04:09]} a5 {[%emt 0:00:28]} 34. Rc1 {[%emt 0:01:17]} Kf7 {[%emt 0:01:35]} 35. h4 {[%emt 0:00:20]} Kg7 {[%emt 0:00:25]} 36. b3 {[%emt 0:02:04]} b5 {[%emt 0:01:38]} 37. h5 {[%emt 0:02:15]} gxh5 {[%emt 0:01:30]} 38. Rh1 {[%emt 0:00:04]} Nxe4 {[%emt 0:00:17]} 39. Kxe4 {[%emt 0:02:40]} Kg6 {[%emt 0:00:05]} 40. Kf3 {[%emt 0:01:54]} Kxg5 {[%emt 0:01:09]} 41. Rg1+ {[%emt 0:00:16]} Kf5 {[%emt 0:00:21]} 42. Rg8 {[%emt 0:00:10]} h4 {[%emt 0:00:33]} 43. Rf8+ {[%emt 0:00:47]} Kg5 {[%emt 0:00:20]} 44. Ra8 {[%emt 0:00:28]} h3 {[%emt 0:00:15]} 45. Rxa5 {[%emt 0:00:14]} h2 {[%emt 0:00:14]} 46. Kg2 {[%emt 0:00:08]} Kf4 {[%emt 0:00:25]} 47. Ra8 {[%emt 0:01:26]} Ke3 {[%emt 0:04:47]} 48. a4 {[%emt 0:01:45]} bxa4 {[%emt 0:02:22]} 49. bxa4 {[%emt 0:00:08]} Kxd3 {[%emt 0:00:10]} 50. Re8 {[%emt 0:05:44]} Ke2 {[%emt 0:05:26]} 51. Rxe5+ {[%emt 0:00:49]} dxe5 {[%emt 0:00:09]} 52. d6 {[%emt 0:00:05]} d3 {[%emt 0:01:00]} 53. d7 {[%emt 0:00:11]} h1=Q+ {[%emt 0:00:34]} 54. Kxh1 {[%emt 0:00:08]} d2 {[%emt 0:00:15]} 55. d8=Q {[%emt 0:03:36]} e4 {[%emt 0:01:18]} 56. Kg2 {[%emt 0:03:25]} d1=Q {[%emt 0:00:07]} 57. Qxd1+ {[%emt 0:02:02]} Kxd1 {[%emt 0:00:06]} 58. a5 {[%emt 0:00:44]} e3 {[%emt 0:00:06]} 59. a6 {[%emt 0:00:20]} e2 {[%emt 0:00:05]} 60. a7 {[%emt 0:00:11]} e1=Q {[%emt 0:00:08]} 61. a8=Q {[%emt 0:00:39]} Qd2+ {[%emt 0:00:43]} 62. Kh3 {[%emt 0:00:25]} Qd3+ {[%emt 0:00:51]} 63. Kh2 {[%emt 0:00:04]} Qe2+ {[%emt 0:01:11]} 64. Kh3 {[%emt 0:00:03]} Qh5+ {[%emt 0:00:12]} 65. Kg2 {[%emt 0:00:22]} Qg6+ {[%emt 0:00:13]} 66. Kh2 {[%emt 0:00:05]} Qh5+ {[%emt 0:01:26]} 67. Kg2 {[%emt 0:00:09]} Qg4+ {[%emt 0:00:48]} 68. Kh2 {[%emt 0:00:05]} Qf5 {[%emt 0:01:15]} 69. Qh1+ {[%emt 0:00:55]} Ke2 {[%emt 0:00:20]} 70. Qg2+ {[%emt 0:00:02]} Ke3 {[%emt 0:00:09]} 71. Qh3+ 1/2-1/2